Cogmind - Beta 15 @@@ ROGUE MODE // 2025.07.10 @ 19:53:06 Player: Rockstar Result: Destroyed by Striker with Plasma Lance Performance ------------- Evolutions (7) 3500 Regions Visited (12) 2400 Robots Destroyed (96) 480 Value Destroyed (3665) 3665 Prototype IDs (2) 40 Alien Tech Used (0) 0 Bonus (3530) 3530 TOTAL SCORE: 13615 Bonus ------- High Alert Combat Kills 321 Follower Combat Kills 737 Entered DSFs 500 Acquired SGEMP 2000 Friendly Fire -28 Cogmind --------- Core Integrity 0/1300 Matter 275/300 Energy 15/100 System Corruption 8% Temperature Cool (0) Movement Core (50) Location -3/Testing Parts ------- > --- POWER (2) -------- (None) > --- PROPULSION (6) --- (None) > --- UTILITY (11) ----- (None) > --- WEAPON (2) ------- Spear > --- INVENTORY (5) ---- SGEMP Prototype Peak State ------------ > --- POWER ------------ Light Nuclear Core Light Nuclear Core > --- PROPULSION ------- Centrium Wheel VTOL Module Nuclear Pulse Array Nuclear Pulse Array > --- UTILITY ---------- Advanced Power Amplifier Advanced Power Amplifier Advanced Weight Redist. System Triangulator Cloaking Device Improved Medium Armor Plating Improved Medium Armor Plating Improved Focal Shield > --- WEAPON ----------- Spear > --- INVENTORY -------- Armored Medium Treads Armored Medium Treads Biometal Medium Treads Compact HERF Cannon Nova Cannon [Rating: 87] Favorites ----------- Power Ion Engine Engine Ion Engine Power Core Micro Nuclear Core Reactor Antimatter Reactor Propulsion Armored Treads Treads Armored Treads Leg Carbon-fiber Leg Wheel Wheel Hover Unit Gravmag System Flight Unit Nuclear Pulse Array Utility High-capacity Storage Unit Device Advanced Heat Sink Storage High-capacity Storage Unit Processor Visual Processing Unit Protection Heavy Armor Plating Weapon Battle Cannon Energy Gun Improved Medium Laser Energy Cannon Beam Cannon Ballistic Gun Assault Rifle Ballistic Cannon Battle Cannon Launcher Rocket Launcher Special Weapon Mining Laser Impact Weapon Hammer Slashing Weapon Mining Claw Piercing Weapon Spear Build | -11 -10 -10 -8 -7 -7 -7 -6 -5 -5 -4 -3 -3 ------- Run | Yrd Mat Sub Mat Fac Was Fac Fac Fac DSF Fac Res Tes Slots Evolved 14 | . . . 4 2 . . 2 2 . 2 2 . Power 1 | . . . . 1 . . . . . . . . Propulsion 4 | . . . . . . . . 2 . 2 . . Utility 9 | . . . 4 1 . . 2 . . . 2 . Weapon . | . . . . . . . . . . . . . Parts Attached 143 | 6 17 2 34 9 16 7 9 . 21 11 3 8 Power 23 | 1 2 . 4 3 5 1 1 . 2 3 1 . Engine 13 | 1 2 . 4 2 3 . 1 . . . . . Core 7 | . . . . 1 1 1 . . 2 1 1 . Reactor 3 | . . . . . 1 . . . . 2 . . Propulsion 32 | 2 2 . 8 1 3 . 1 . 6 3 . 6 Treads 18 | . 2 . 5 . 1 . 1 . 6 . . 3 Leg 3 | . . . 3 . . . . . . . . . Wheel 4 | 2 . . . 1 . . . . . . . 1 Hover 2 | . . . . . 2 . . . . . . . Flight 5 | . . . . . . . . . . 3 . 2 Utility 60 | 1 5 . 17 3 6 5 3 . 13 4 2 1 Device 22 | . 1 . 7 2 1 2 2 . 1 4 2 . Storage 7 | 1 2 . 3 . 1 . . . . . . . Processor 8 | . 1 . 4 1 . 1 . . . . . 1 Hackware . | . . . . . . . . . . . . . Protection 23 | . 1 . 3 . 4 2 1 . 12 . . . Artifact . | . . . . . . . . . . . . . Weapon 28 | 2 8 2 5 2 2 1 4 . . 1 . 1 Energy Gun 5 | 1 3 . 1 . . . . . . . . . Energy Cannon 5 | . 2 1 . . . . 2 . . . . . Ballistic Gun 4 | 1 . 1 1 1 . . . . . . . . Ballistic Cannon 6 | . . . 1 1 2 1 1 . . . . . Launcher 3 | . . . 2 . . . 1 . . . . . Special Weapon 1 | . 1 . . . . . . . . . . . Impact Weapon 1 | . 1 . . . . . . . . . . . Slashing Weapon 1 | . 1 . . . . . . . . . . . Piercing Weapon 2 | . . . . . . . . . . 1 . 1 Special Melee Weapon . | . . . . . . . . . . . . . Unidentified Prototypes 1 | . 1 . . . . . . . . . . . Parts Lost 71 | . 3 1 11 17 . . 11 . 8 . . 20 Power 10 | . . . 2 5 . . 1 . . . . 2 Propulsion 17 | . 1 . 1 5 . . 1 . 1 . . 8 Utility 32 | . 1 . 5 4 . . 6 . 7 . . 9 Weapon 12 | . 1 1 3 3 . . 3 . . . . 1 Highest Loss Streak 10 | . 1 1 3 8 . . 10 . 5 . . 7 To Critical Strikes 1 | . . . . . . . . . 1 . . . Average Backups 11 | 3 13 20 18 15 7 6 4 . 2 4 5 3 Power 2 | . 2 3 3 3 2 2 1 . . 1 . . Propulsion 2 | 1 2 1 3 2 1 1 . . 1 2 2 2 Utility 4 | . 5 9 6 5 1 1 . . . . . . Weapon 2 | . 3 6 4 3 2 1 1 . . . 1 . Tool/Special . | . . . . . . . . . . . . . Unused Backups 26 | . 8 2 2 1 7 2 . . 2 . . 2 Power 2 | . . . . . 1 . . . 1 . . . Propulsion 7 | . 3 . 1 1 1 . . . 1 . . . Utility 9 | . 3 2 1 . 1 2 . . . . . . Weapon 8 | . 2 . . . 4 . . . . . . 2 Tool/Special . | . . . . . . . . . . . . . Average Slot Usage (%) 79 | . 96 100 96 85 76 78 62 . 45 42 58 27 Engine 6 | . 13 14 8 7 6 . . . . . . . Core 2 | . . . . . 5 7 5 . 2 2 6 2 Reactor 1 | . . . . . 1 7 5 . . 2 1 . Treads 9 | . 5 28 15 12 4 7 5 . 19 1 . . Wheel 4 | . 20 . . 1 . . . . . . . . Device 9 | . 2 . 17 14 7 6 5 . 1 11 22 10 Storage 9 | . 14 14 9 8 14 12 5 . . . . . Processor 10 | . 8 14 20 23 1 2 5 . . . . 1 Protection 8 | . 1 . 5 . 16 17 16 . 20 10 9 1 Energy Gun 3 | . 11 3 7 1 . . . . . . . . Energy Cannon 1 | . 7 10 2 . . . . . . . . . Ballistic Gun 1 | . 6 10 . . . . . . . . . . Ballistic Cannon 4 | . . . . 5 10 15 10 . . . . . Launcher 1 | . . . 5 4 . . . . . . . . Peak Build Rating 87 | 6 13 12 35 42 44 51 60 . 80 73 80 87 Average Rating 32 | 4 9 10 27 34 34 48 48 . 52 55 73 35 On Entrance 28 | . 6 11 9 35 31 44 51 . . 38 70 80 Naked Turns 157 | . . . . . 1 . 57 8 3 . . 88 Heaviest Build 87 | 14 51 57 66 72 57 67 87 . 79 39 37 36 Greatest Support 108 | 26 40 40 55 46 70 70 70 3 108 39 39 97 Greatest Overweight (x) 5 | 2 5 1 3 5 1 . 4 . 1 . . 1 Average Overweight (x) . | . . 1 . 1 . . . . . . . . Largest Inventory Capacity 20 | 8 20 20 20 20 20 8 8 5 5 5 5 5 Average Capacity 13 | 7 15 20 20 20 7 8 7 5 5 5 5 5 Most Carried 20 | 6 20 20 20 19 13 8 8 . 5 5 5 5 Average Carried 11 | 3 14 19 18 15 7 7 5 . 2 4 4 4 Final Capacity 20 | 8 20 20 20 20 8 8 5 5 5 5 5 5 Final Carried 20 | 6 20 20 20 14 8 8 . . 5 5 5 2 Class Distribution -------------------- 58% | Mutant 17% | Scavenger-Mutant 10% | Scavenger-Skirmisher 7% | Skirmisher 3% | Sprinter Dominant Class ---------------- Mutant | -10/Materials Mutant | -10/Subcaves Scavenger-Mutant | -8/Materials Scavenger-Skirmisher | -7/Factory Mutant | -7/Waste Mutant | -7/Factory Mutant | -6/Factory Mutant | -5/Factory Mutant | -5/DSF Mutant | -4/Factory Mutant | -3/Research Mutant | -3/Testing Resources | -11 -10 -10 -8 -7 -7 -7 -6 -5 -5 -4 -3 -3 ----------- Run | Yrd Mat Sub Mat Fac Was Fac Fac Fac DSF Fac Res Tes Matter Collected 3336 | 258 329 53 947 269 490 124 312 . 381 126 . 47 Remotely . | . . . . . . . . . . . . . Salvage Created 2969 | . 476 . 1201 400 246 78 358 . . 137 . 73 Parts 170 | . 28 . 76 33 3 3 15 . . 8 . 4 Haulers Intercepted . | . . . . . . . . . . . . . Recyclers Shooed 1 | . . . 1 . . . . . . . . . Parts Field Recycled . | . . . . . . . . . . . . . Retrieved Matter . | . . . . . . . . . . . . . Parts Self-Destructed . | . . . . . . . . . . . . . Prevented . | . . . . . . . . . . . . . Kills | -11 -10 -10 -8 -7 -7 -7 -6 -5 -5 -4 -3 -3 ------- Run | Yrd Mat Sub Mat Fac Was Fac Fac Fac DSF Fac Res Tes Combat Hostiles Destroyed 82 | . 15 . 32 16 1 2 10 . 1 3 . 2 Melee 10 | . 3 . . 1 . . . . 1 3 . 2 Guns 22 | . 4 . 14 4 . . . . . . . . Cannons 32 | . 7 . 6 7 1 2 9 . . . . . AOE 17 | . . . 12 4 . . 1 . . . . . Classes Destroyed 18 | . 4 . 8 3 1 . 1 . 1 . . . Worker 6 | . . . 1 . . 1 4 . . . . . Builder 2 | . . . . 1 . . 1 . . . . . Recycler 2 | . 1 . 1 . . . . . . . . . Operator 1 | . . . . 1 . . . . . . . . Watcher 3 | . 1 . 1 . . 1 . . . . . . Swarmer 24 | . 8 . 4 7 . 1 . . . 2 . 2 Cutter 1 | . . . . . . . . . 1 . . . Grunt 39 | . 7 . 18 6 . . 7 . . 1 . . Brawler 1 | . . . 1 . . . . . . . . . Duelist 2 | . . . 2 . . . . . . . . . Protector 1 | . . . 1 . . . . . . . . . Sentry 6 | . . . 2 2 . 1 1 . . . . . Demolisher 1 | . . . . . . . 1 . . . . . Specialist 2 | . . . 2 . . . . . . . . . Hunter 1 | . . . 1 . . . . . . . . . Programmer 2 | . . . . 1 . . 1 . . . . . Heavy 1 | . . . 1 . . . . . . . . . Compactor 1 | . . . . . 1 . . . . . . . Best Kill Streak 6 | . 5 . 5 5 1 1 6 . 1 3 . 1 Combat Bots Only 5 | . 5 . 5 4 1 1 2 . 1 3 . 1 Max Kills in Single Turn 4 | . 1 . 2 2 1 1 4 . 1 1 . 1 Gunslinging 1 | . . . 1 . . . . . . . . . Exploded 2 | . . . 2 2 . . 1 . . . . . Melee 1 | . 1 . . 1 . . . . 1 1 . 1 Uniques/NPCs Destroyed . | . . . . . . . . . . . . . Combat | -11 -10 -10 -8 -7 -7 -7 -6 -5 -5 -4 -3 -3 -------- Run | Yrd Mat Sub Mat Fac Was Fac Fac Fac DSF Fac Res Tes Hostile Shots Fired 1392 | . 96 15 126 231 . 5 270 . 374 37 2 236 Missed 457 | . 30 8 35 76 . 2 99 . 95 16 2 94 Hits 935 | . 66 7 91 155 . 3 171 . 279 21 . 142 Melee 51 | . . . 13 . . . . . 28 . . 10 Projectile 884 | . 66 7 78 155 . 3 171 . 251 21 . 132 AOE 6 | . . . . . . . 4 . 2 . . . Critical Strikes 44 | . . 1 8 5 . 1 8 . 19 1 . 1 Actively Blocked 1 | . . . 1 . . . . . . . . . Part Disruptions 2 | . . . . . . . . . 1 . . 1 Damage Taken 18061 | . 817 153 1874 1930 . 62 3192 . 6607 354 . 3072 Core 3543 | . 146 25 511 333 . 13 767 . 389 33 . 1326 Absorbed by Shields 78 | . . . . 78 . . . . . . . . Redirected to Shielding 41 | . . . 41 . . . . . . . . . Ignored by Resistances 56 | . . . . . . . . . . . . 56 Regen/Repaired (Parts) 156 | . 156 . . . . . . . . . . . Core Remaining (%) 50 | 100 . 31 7 . . 50 9 . 61 97 . . Volleys Fired 220 | . 39 7 79 41 5 8 41 . . . . . Largest 2 | . 2 2 2 2 2 2 2 . . . . . Hottest 150 | . 120 110 137 89 66 66 150 . . . . . Shots Fired 397 | . 68 14 151 60 7 17 80 . . . . . Gun 156 | . 38 7 97 14 . . . . . . . . Cannon 205 | . 21 7 37 41 7 17 75 . . . . . Launcher 25 | . . . 15 5 . . 5 . . . . . Special 11 | . 9 . 2 . . . . . . . . . Kinetic 197 | . 18 7 35 45 7 17 68 . . . . . Thermal 168 | . 50 7 101 10 . . . . . . . . Explosive 25 | . . . 15 5 . . 5 . . . . . Electromagnetic 7 | . . . . . . . 7 . . . . . Robot Hit Streak 31 | . 5 6 31 8 12 4 12 . . . . . Robot Miss Streak 5 | . 4 2 2 4 1 3 5 . . . . . Penetration Max 1 | . . . . 1 . . . . . . . . Secondary Targets 2 | . . . 2 . . . . . . . . . Max Gunslinging Chain 1 | . . . 1 . . . . . . . . . Shots Hit Robots 284 | . 46 9 111 45 6 7 44 . . 7 . 9 Core Hits 164 | . 16 1 78 33 2 5 21 . 1 4 . 3 Critical Kills 1 | . 1 . . . . . . . . . . . Critical Parts Destroyed 1 | . 1 . . . . . . . . . . . Critical Strikes 16 | . 3 . 3 6 . . 3 . . 1 . . Burn 6 | . 1 . 2 3 . . . . . . . . Blast 7 | . . . 1 3 . . 3 . . . . . Smash 2 | . 2 . . . . . . . . . . . Impale 1 | . . . . . . . . . . 1 . . Melee Attacks 41 | . 15 . 1 5 . . . . . 8 . 12 Impact 10 | . 10 . . . . . . . . . . . Slashing 11 | . 5 . 1 5 . . . . . . . . Piercing 20 | . . . . . . . . . . 8 . 12 Sneak Attacks 3 | . 1 . . . . . . . . 2 . . Combat Hostiles 1 | . . . . . . . . . . 1 . . Follow-up Attacks . | . . . . . . . . . . . . . Damage Inflicted 8645 | . 879 214 3233 1683 129 208 1616 . 87 314 . 282 Guns 1808 | . 314 130 1199 165 . . . . . . . . Cannons 3098 | . 262 84 574 800 129 208 1041 . . . . . Explosions 2553 | . . . 1360 618 . . 575 . . . . . Melee 975 | . 290 . . 100 . . . . . 314 . 271 Ramming 187 | . 13 . 76 . . . . . 87 . . 11 Kinetic 2929 | . 109 130 534 846 129 208 973 . . . . . Thermal 2326 | . 467 84 1263 222 . . 290 . . . . . Explosive 2160 | . . . 1360 515 . . 285 . . . . . Electromagnetic 68 | . . . . . . . 68 . . . . . Impact 222 | . 222 . . . . . . . . . . . Slashing 168 | . 68 . . 100 . . . . . . . . Piercing 585 | . . . . . . . . . . 314 . 271 Highest Corruption 11 | . 2 2 11 2 2 3 . . . . . 8 Average Corruption 4 | . 2 2 8 1 2 2 . . . . . 7 Corruption Purged 1 | . . . . . . 1 . . . . . . Corruption Blocked . | . . . . . . . . . . . . . Effects 79 | . 4 2 34 4 8 17 . . . . . 10 Message Errors 16 | . 1 . 7 . 3 3 . . . . . 2 Matter Fused 14 | . 1 1 6 2 1 2 . . . . . 1 Heat Flow Errors 12 | . 2 . 5 1 1 2 . . . . . 1 Energy Discharges 14 | . . . 6 . . 5 . . . . . 3 Parts Rejected 2 | . . . 2 . . . . . . . . . Parts Fused 1 | . . . 1 . . . . . . . . . Data Loss (minor) 10 | . . 1 4 1 . 3 . . . . . 1 Data Loss (major) 5 | . . . 1 . 2 . . . . . . 2 Misfires 3 | . . . 1 . 1 1 . . . . . . Alerts 2 | . . . 1 . . 1 . . . . . . Overload Shots . | . . . . . . . . . . . . . Overflow Damage 197 | . 53 . 10 60 . 2 57 . . 15 . . Projectiles 49 | . . . 2 1 . 2 44 . . . . . Explosions 80 | . . . 8 59 . . 13 . . . . . Melee 68 | . 53 . . . . . . . . 15 . . Knockbacks 18 | . 1 . 2 9 . 1 5 . . . . . Impact 1 | . 1 . . . . . . . . . . . Kinetic 16 | . . . 1 9 . 1 5 . . . . . Secondary 1 | . . . 1 . . . . . . . . . Self-Inflicted Damage 168 | . 6 . 43 114 . . . . . . . 5 Shots 5 | . . . 2 3 . . . . . . . . Rammed 32 | . 1 . 11 1 . . . . 17 . . 2 Targets Rammed 35 | . 1 . 12 2 . . . . 18 . . 2 Kicked . | . . . . . . . . . . . . . Crushed 3 | . . . 1 1 . . . . 1 . . . Highest Temperature 384 | . 384 . 251 186 198 108 312 . 25 . . 236 Average Temperature 83 | . 99 . 43 104 111 46 92 . 10 . . 121 Received Heat Transfer 2886 | . 198 . 540 492 . 45 459 . 1071 9 . 72 Effects 1 | . 1 . . . . . . . . . . . Damage (minor) 1 | . 1 . . . . . . . . . . . Siege Activations 2 | . . . . . . . 2 . . . . . Total Turns 18 | . . . . . . . 18 . . . . . Longest Duration 12 | . . . . . . . 12 . . . . . Martial Activations . | . . . . . . . . . . . . . Shielding Activations . | . . . . . . . . . . . . . Robots Disrupted . | . . . . . . . . . . . . . Combat Hostiles . | . . . . . . . . . . . . . Robots Corrupted 1 | . 1 . . . . . . . . . . . Combat Hostiles 1 | . 1 . . . . . . . . . . . Parts Fried 1 | . . . . . . . 1 . . . . . Impact Corruptions 3 | . 3 . . . . . . . . . . . Robots Melted . | . . . . . . . . . . . . . Combat Hostiles . | . . . . . . . . . . . . . Parts Melted 10 | . 2 . 6 . . 1 1 . . . . . Heat Transferred 4727 | . 1073 111 2762 581 . . 200 . . . . . Parts Sabotaged . | . . . . . . . . . . . . . Parts Stolen . | . . . . . . . . . . . . . Parts Stripped . | . . . . . . . . . . . . . Power Chain Reactions . | . . . . . . . . . . . . . Alert | -11 -10 -10 -8 -7 -7 -7 -6 -5 -5 -4 -3 -3 ------- Run | Yrd Mat Sub Mat Fac Was Fac Fac Fac DSF Fac Res Tes Maximum Alert Level 2 | . . . 2 1 . 1 2 1 1 . . . Low Security (%) 57 | 100 100 . 11 29 100 68 11 . 93 100 100 100 Level 1 16 | . . . 8 70 . 31 1 100 6 . . . Level 2 25 | . . . 80 . . . 86 . . . . . Level 3 . | . . . . . . . . . . . . . Level 4 . | . . . . . . . . . . . . . Level 5 . | . . . . . . . . . . . . . High Security . | . . . . . . . . . . . . . Max Security . | . . . . . . . . . . . . . Peak Influence 690 | . 188 . 690 359 101 333 541 264 218 158 79 80 Initial 283 | . . . . 283 101 . 144 264 188 98 77 38 Average 234 | . 53 . 505 243 25 163 433 264 189 105 75 13 Influence Increases 4130 | . 419 . 1186 538 32 653 906 5 80 120 12 179 Destroy 0b10 Robot/C 1940 | . 300 . 620 320 . 240 340 . 20 60 . 40 Destroy 0b10 Robot/NC 80 | . 10 . 20 10 . 15 25 . . . . . Destroy Leader 376 | . 62 . 122 70 . 42 70 . . . . 10 Allied During Kill 352 | . . . . . . 251 101 . . . . . Successful Hack 47 | . 16 . . . . 5 . 5 . . 12 9 Disable Machine 330 | . 30 . 45 60 . 60 135 . . . . . Anti-Garrison Action 150 | . . . 150 . . . . . . . . . Destroy Structure 315 | . 1 . 64 63 32 40 115 . . . . . Partial Spotted 15 | . . . . . . . . . . . . 15 Lose Combat Pursuer 525 | . . . 165 15 . . 120 . 60 60 . 105 Influence Decreases 4130 | . 419 . 562 873 321 356 663 276 161 160 91 248 Entered New Map 1231 | . . . . 341 188 . 153 276 81 90 71 31 Time Decay 2079 | . 395 . 452 362 91 316 270 . . 70 20 103 Lost Part 608 | . 24 . 110 170 . . 110 . 80 . . 114 Lost Ally 212 | . . . . . 42 40 130 . . . . . Squads Dispatched 34 | . 2 . 8 5 . 1 12 . 2 1 . 3 Investigation 5 | . 1 . 2 . . . 1 . . . . 1 Extermination 4 | . . . . 2 . 1 1 . . . . . Reinforcement 15 | . 1 . 2 3 . . 4 . 2 1 . 2 Assault 2 | . . . 2 . . . . . . . . . Garrison 8 | . . . 2 . . . 6 . . . . . Intercept . | . . . . . . . . . . . . . Searches Triggered . | . . . . . . . . . . . . . Construction Impeded 2 | . . . . 2 . . . . . . . . Haulers Reinforced 2 | . . . . . . . 1 . . 1 . . Active Scanning Responses . | . . . . . . . . . . . . . Cargo Convoy Interrupts . | . . . . . . . . . . . . . Stealth | -11 -10 -10 -8 -7 -7 -7 -6 -5 -5 -4 -3 -3 --------- Run | Yrd Mat Sub Mat Fac Was Fac Fac Fac DSF Fac Res Tes Distress Signals 12 | . 2 . 7 2 . . 1 . . . . . Communications Jammed . | . . . . . . . . . . . . . Distress Signals . | . . . . . . . . . . . . . Times Spotted 212 | . 26 2 52 20 5 13 30 . 26 11 3 24 Peak Tracking Total 16 | . 7 1 10 5 3 4 11 . 16 5 3 10 Tactical Retreats 18 | . . . 5 1 . . 4 . 3 2 . 3 Traps | -11 -10 -10 -8 -7 -7 -7 -6 -5 -5 -4 -3 -3 ------- Run | Yrd Mat Sub Mat Fac Was Fac Fac Fac DSF Fac Res Tes Traps Triggered 12 | . 1 . 5 2 . 1 1 . . 1 . 1 Indirectly . | . . . . . . . . . . . . . Trap Hack Attempts . | . . . . . . . . . . . . . Triggered . | . . . . . . . . . . . . . Disarmed 6 | . 6 . . . . . . . . . . . Reprogrammed . | . . . . . . . . . . . . . Reused . | . . . . . . . . . . . . . Traps Extracted . | . . . . . . . . . . . . . Installed . | . . . . . . . . . . . . . Triggered . | . . . . . . . . . . . . . Machines | -11 -10 -10 -8 -7 -7 -7 -6 -5 -5 -4 -3 -3 ---------- Run | Yrd Mat Sub Mat Fac Was Fac Fac Fac DSF Fac Res Tes Machines Disabled 23 | . 2 . 4 4 . 4 9 . . . . . Max in Single Turn 2 | . 1 . 1 2 . 1 2 . . . . . Garrison Access 1 | . . . 1 . . . . . . . . . Machines Repaired . | . . . . . . . . . . . . . Machines Dismantled . | . . . . . . . . . . . . . Machines Sabotaged . | . . . . . . . . . . . . . Overloaded Fab Kills . | . . . . . . . . . . . . . Hacking | -11 -10 -10 -8 -7 -7 -7 -6 -5 -5 -4 -3 -3 --------- Run | Yrd Mat Sub Mat Fac Was Fac Fac Fac DSF Fac Res Tes Machines Accessed 25 | . 8 . 3 1 . 5 1 1 . 3 1 2 Terminals 17 | . 6 . 1 . . 5 . 1 . 1 1 2 Fabricators . | . . . . . . . . . . . . . Repair Stations 4 | . 1 . 1 1 . . . . . 1 . . Recycling Units 2 | . 1 . . . . . . . . 1 . . Scanalyzers . | . . . . . . . . . . . . . Garrison Access 2 | . . . 1 . . . 1 . . . . . Total Hacks 54 | . 24 . 7 1 . 7 3 1 . 5 2 4 Successful 21 | . 13 . 2 . . 1 . 1 . 1 1 2 Failed 33 | . 11 . 5 1 . 6 3 . . 4 1 2 Catastrophic 10 | . 3 . 2 . . 2 1 . . 1 . 1 Database Lockouts . | . . . . . . . . . . . . . Manual 26 | . 12 . 3 . . 6 2 . . 1 2 . Terminals 28 | . 12 . 1 . . 7 . 1 . 1 2 4 Fabricators . | . . . . . . . . . . . . . Repair Stations 17 | . 11 . 4 1 . . . . . 1 . . Recycling Units 4 | . 1 . . . . . . . . 3 . . Scanalyzers . | . . . . . . . . . . . . . Garrison Access 5 | . . . 2 . . . 3 . . . . . Terminal Hacks 6 | . 2 . . . . 1 . 1 . . . 2 Part Schematic 1 | . . . . . . . . . . . . 1 Open Door 1 | . . . . . . . . . . . . 1 Open DSF 2 | . . . . . . 1 . 1 . . . . Branch Access Points 1 | . 1 . . . . . . . . . . . Disarm Traps 1 | . 1 . . . . . . . . . . . Fabricator Hacks . | . . . . . . . . . . . . . Repair Station Hacks 11 | . 9 . 2 . . . . . . . . . Scan Component 6 | . 4 . 2 . . . . . . . . . Repair 4 | . 4 . . . . . . . . . . . Refit 1 | . 1 . . . . . . . . . . . Recycling Unit Hacks 2 | . 1 . . . . . . . . 1 . . Retrieve Components 2 | . 1 . . . . . . . . 1 . . Scanalyzer . | . . . . . . . . . . . . . Garrison Access Hacks . | . . . . . . . . . . . . . Unauthorized Hacks 2 | . 1 . . . . . . . . . 1 . Terminals 2 | . 1 . . . . . . . . . 1 . Track 2 | . 1 . . . . . . . . . 1 . Fabricators . | . . . . . . . . . . . . . Repair Stations . | . . . . . . . . . . . . . Recycling Units . | . . . . . . . . . . . . . Scanalyzers . | . . . . . . . . . . . . . Garrison Access . | . . . . . . . . . . . . . Data Cores Recovered . | . . . . . . . . . . . . . Used . | . . . . . . . . . . . . . Hacking Detections 24 | . 8 . 3 1 . 5 1 . . 3 1 2 Full Trace Events 3 | . . . 2 . . . 1 . . . . . Feedback Events . | . . . . . . . . . . . . . Feedback Blocked . | . . . . . . . . . . . . . Robot Schematics Acquired . | . . . . . . . . . . . . . Robots Built . | . . . . . . . . . . . . . Authchips . | . . . . . . . . . . . . . Time . | . . . . . . . . . . . . . Total Robot Build Rating . | . . . . . . . . . . . . . Part Schematics Acquired 1 | . . . . . . . . . . . . 1 Parts Built . | . . . . . . . . . . . . . Authchips . | . . . . . . . . . . . . . Time . | . . . . . . . . . . . . . Total Part Build Rating . | . . . . . . . . . . . . . Parts Repaired 4 | . 4 . . . . . . . . . . . Time 104 | . 104 . . . . . . . . . . . Parts Recycled . | . . . . . . . . . . . . . Recycled Matter . | . . . . . . . . . . . . . Retrieved Matter . | . . . . . . . . . . . . . Retrieved Components 10 | . 8 . . . . . . . . 2 . . Parts Scanalyzed . | . . . . . . . . . . . . . Part Schematics Acquired . | . . . . . . . . . . . . . Parts Damaged . | . . . . . . . . . . . . . Bothacking | -11 -10 -10 -8 -7 -7 -7 -6 -5 -5 -4 -3 -3 ------------ Run | Yrd Mat Sub Mat Fac Was Fac Fac Fac DSF Fac Res Tes Used RIF Installer . | . . . . . . . . . . . . . Robots Hacked . | . . . . . . . . . . . . . Non-combat . | . . . . . . . . . . . . . Combat . | . . . . . . . . . . . . . Robot Hacks Applied . | . . . . . . . . . . . . . Relay Couplers Released 3 | . . . 3 . . . . . . . . . Machine Destruction 3 | . . . 3 . . . . . . . . . Fabnet Peak Effective % . | . . . . . . . . . . . . . Robots Rewired . | . . . . . . . . . . . . . Allies Hacked 1 | . . . . . . 1 . . . . . . Hacks Repelled . | . . . . . . . . . . . . . Allies | -11 -10 -10 -8 -7 -7 -7 -6 -5 -5 -4 -3 -3 -------- Run | Yrd Mat Sub Mat Fac Was Fac Fac Fac DSF Fac Res Tes Total Allies 19 | . . . . . 19 . . . . . . . Largest Group 19 | . . . . . 19 12 10 . . . . . Highest-Rated Group 465 | . . . . . 465 360 298 . . . . . Highest-Rated Ally 35 | . . . . . 35 35 35 . . . . . Total Orders . | . . . . . . . . . . . . . Ally Attacks 278 | . . . . . 175 60 43 . . . . . Total Damage 7262 | . . . . . 4059 1428 1775 . . . . . Kills 30 | . . . . . 9 11 10 . . . . . Allies Corrupted . | . . . . . . . . . . . . . Allies Melted . | . . . . . . . . . . . . . Intel | -11 -10 -10 -8 -7 -7 -7 -6 -5 -5 -4 -3 -3 ------- Run | Yrd Mat Sub Mat Fac Was Fac Fac Fac DSF Fac Res Tes Active Infowar (turns) 2800 | . 213 . 1356 832 6 . 96 . . 143 49 105 Optics 2193 | . . . 1355 832 6 . . . . . . . Sensors 1377 | . . . 535 746 . . 96 . . . . . Structural 533 | . 213 . 320 . . . . . . . . . Triangulation 114 | . . . . . . . . . . . 21 93 Cloaking 297 | . . . . . . . . . . 143 49 105 Robot Analysis Total . | . . . . . . . . . . . . . Derelict Logs Recovered . | . . . . . . . . . . . . . Drone Launches . | . . . . . . . . . . . . . Drone Recoveries . | . . . . . . . . . . . . . Exploration | -11 -10 -10 -8 -7 -7 -7 -6 -5 -5 -4 -3 -3 ------------- Run | Yrd Mat Sub Mat Fac Was Fac Fac Fac DSF Fac Res Tes Turns Passed 6315 | 49 1210 118 1357 832 394 914 586 8 298 150 49 350 Spaces Moved 3653 | 35 704 38 399 273 278 513 283 16 131 244 122 617 Core 451 | 7 . . . . 1 . 136 16 28 . . 263 Treads 1635 | . 75 38 357 220 168 513 147 . 103 . . 14 Legs 42 | . . . 42 . . . . . . . . . Wheels 710 | 28 629 . . 53 . . . . . . . . Hover 109 | . . . . . 109 . . . . . . . Flight 706 | . . . . . . . . . . 244 122 340 Fastest Speed 29 | 50 90 240 160 140 46 160 50 50 50 32 32 29 Average Speed 128 | 97 116 240 237 232 116 160 147 50 150 35 32 43 Slowest Speed 330 | 150 240 240 330 320 160 160 250 50 250 37 32 157 Overloaded Moves . | . . . . . . . . . . . . . Propulsion Burnouts . | . . . . . . . . . . . . . Robots Hopped 5 | . . . . . . . . . . 2 . 3 Potential Cave-ins . | . . . . . . . . . . . . . Cave-ins Triggered . | . . . . . . . . . . . . . Exploration Rate (%) 30 | 3 95 3 32 8 69 16 15 1 89 8 4 57 Regions Visited 12 Branch Regions 2 Pre-discovered Areas . | . . . . . . . . . . . . . Known Exits Taken 5 | . 1 1 1 . . 1 . 1 . . . . Unknown Exits Taken 4 | 1 . . . . . . 1 . . 1 1 . Scrap Searched 1 | . . 1 . . . . . . . . . . Spaces Dug . | . . . . . . . . . . . . . Terrain Destroyed 174 | . 2 1 77 57 . 1 36 . . . . . Melee . | . . . . . . . . . . . . . Projectile 14 | . 2 1 2 5 . 1 3 . . . . . AOE 160 | . . . 75 52 . . 33 . . . . . Terrain Rammed . | . . . . . . . . . . . . . Walls Destroyed . | . . . . . . . . . . . . . Machines Disabled . | . . . . . . . . . . . . . Actions | -11 -10 -10 -8 -7 -7 -7 -6 -5 -5 -4 -3 -3 --------- Run | Yrd Mat Sub Mat Fac Was Fac Fac Fac DSF Fac Res Tes Total 4754 | 46 982 52 637 396 351 595 367 15 215 291 131 676 Wait 373 | . 142 . 47 34 9 48 27 . 20 14 . 32 Move 3633 | 34 703 37 398 273 277 512 282 15 131 239 121 611 Hop 5 | . . . . . . . . . . 2 . 3 Pick Up 110 | 6 34 3 16 8 15 4 4 . 10 5 3 2 Fast Attach 76 | 6 9 . 10 7 6 5 1 . 19 7 2 4 Attach 73 | . 6 . 25 13 10 . 5 . 4 4 2 4 Detach 38 | . 4 . 13 3 6 2 . . 4 5 1 . Swap 59 | . 8 2 25 6 3 3 5 . 2 3 . 2 Drop 92 | . 21 3 11 4 20 13 2 . 8 4 2 4 Fire 220 | . 39 7 79 41 5 8 41 . . . . . Melee 41 | . 15 . 1 5 . . . . . 8 . 12 Ram 3 | . 1 . . . . . . . . . . 2 Kick . | . . . . . . . . . . . . . Crush 31 | . . . 12 2 . . . . 17 . . . Escape Stasis . | . . . . . . . . . . . . . Rewire . | . . . . . . . . . . . . . Trap . | . . . . . . . . . . . . . Miscellaneous . | . . . . . . . . . . . . . Route ------- -11/Scrapyard -10/Materials (discovered 5 exits: *Mat x3 / *Min / *Sub) -10/Subcaves -8/Materials -7/Factory -7/Waste -7/Factory -6/Factory -5/Factory -5/DSF -4/Factory -3/Research -3/Testing History --------- Turn | Location | Event 22 | -11/Scrapyard | Discovered new exit (range 16) 50 | -11/Scrapyard | Entered Materials 232 | -10/Materials | Identified exit to Mines 335 | -10/Materials | Build established: Mutant 393 | -10/Materials | Repaired Ion Engine 421 | -10/Materials | Repaired Wheel 448 | -10/Materials | Repaired Beam Cannon 476 | -10/Materials | Repaired Com. Wheel 479 | -10/Materials | Discovered new exit (range 5) 485 | -10/Materials | Identified exit to Materials 752 | -10/Materials | Discovered exit to Materials (range 10) 860 | -10/Materials | Discovered exit to Materials (range 15) 921 | -10/Materials | Core integrity fell below 50% 1251 | -10/Materials | Discovered new exit (range 3) 1258 | -10/Materials | Identified exit to Subcaves 1260 | -10/Materials | Entered Subcaves 1334 | -10/Subcaves | Discovered new exit (range 5) 1341 | -10/Subcaves | Identified exit to Materials 1369 | -10/Subcaves | Ambushed by angry Subdweller bent on revenge 1378 | -10/Subcaves | Entered Materials 1378 | -8/Materials | Evolved 4 slots: Utility x4 1699 | -8/Materials | Lost 3 parts (1p1n1u) 1851 | -8/Materials | Core integrity fell below 50% 2000 | -8/Materials | System corruption reached 10% 2209 | -8/Materials | Core integrity fell below 20% 2433 | -8/Materials | Build established: Scavenger-Mutant 2654 | -8/Materials | Discovered new exit (range 8) 2733 | -8/Materials | Identified exit to Factory 2735 | -8/Materials | Entered Factory 2735 | -7/Factory | Evolved 2 slots: Power x1, Utility x1 3304 | -7/Factory | Lost 8 parts (2p2n2u2w) 3512 | -7/Factory | Lost 4 parts (2n1u1w) 3567 | -7/Factory | Sucked down chute 3567 | -7/Factory | Entered Waste 3571 | -7/Waste | Spotted C-40 Crusher 3573 | -7/Waste | Released all parts (10) 3600 | -7/Waste | Warlord forces began an assault 3646 | -7/Waste | Spotted C-40 Crusher 3661 | -7/Waste | Allies destroyed C-40 Crusher 3662 | -7/Waste | Spotted C-40 Crusher 3663 | -7/Waste | Destroyed C-40 Crusher 3669 | -7/Waste | Allies destroyed C-40 Crusher 3725 | -7/Waste | Spotted C-40 Crusher 3729 | -7/Waste | Spotted C-40 Crusher 3739 | -7/Waste | Allies destroyed C-40 Crusher 3741 | -7/Waste | Allies destroyed C-40 Crusher 3749 | -7/Waste | Spotted C-40 Crusher 3789 | -7/Waste | Lost 5 allies 3864 | -7/Waste | Build established: Mutant 3921 | -7/Waste | Discovered new exit (range 15) 3961 | -7/Waste | Entered Factory 3961 | -7/Factory | Accompanied by 12 allies 4176 | -7/Factory | Build established: Scavenger-Mutant 4498 | -7/Factory | Build established: Mutant 4761 | -7/Factory | Discovered new exit (range 16) 4784 | -7/Factory | Identified exit to Factory 4875 | -7/Factory | Entered another Factory area 4875 | -6/Factory | Accompanied by 10 allies 4875 | -6/Factory | Evolved 2 slots: Utility x2 4950 | -6/Factory | Garrison activated, responded to threat 4993 | -6/Factory | Lost 7 allies 5344 | -6/Factory | Spotted B-75 Beast 5392 | -6/Factory | Released all parts (4) 5403 | -6/Factory | Core integrity fell below 50% 5423 | -6/Factory | Lost 10 parts (1p1n5u3w) 5446 | -6/Factory | Core integrity fell below 20% 5457 | -6/Factory | Discovered new exit (range 8) 5461 | -6/Factory | Entered another Factory area 5461 | -5/Factory | Evolved 2 slots: Propulsion x2 5469 | -5/Factory | Identified exit to DSF 5469 | -5/Factory | Entered DSF 5505 | -5/DSF | Additional patrols routed to DSF 5608 | -5/DSF | Lost 3 parts (3u) 5717 | -5/DSF | Discovered new exit (range 15) 5767 | -5/DSF | Entered Factory 5767 | -4/Factory | Evolved 2 slots: Propulsion x2 5797 | -4/Factory | Lost 5 parts (1n4u) 5907 | -4/Factory | Discovered new exit (range 12) 5917 | -4/Factory | Entered Research 5917 | -3/Research | Evolved 2 slots: Utility x2 5963 | -3/Research | Discovered new exit (range 8) 5966 | -3/Research | Entered Testing 6098 | -3/Testing | Spotted Striker 6100 | -3/Testing | Spotted Striker 6131 | -3/Testing | Lost 6 parts (2p1n3u) 6136 | -3/Testing | Spotted Alpha 7 6138 | -3/Testing | Stole the SGEMP Prototype 6195 | -3/Testing | Lost 7 parts (4n2u1w) 6200 | -3/Testing | Core integrity fell below 50% 6286 | -3/Testing | Core integrity fell below 20% 6316 | -3/Testing | Destroyed by Striker with Plasma Lance Last Messages --------------- Slug penetrates Wall. U-05 Engineer builds a Door. Penetrated by Slug. Slug penetrates Wall. Penetrated by Slug. Slug penetrates Wall. Penetrated by Slug. Slug penetrates Wall. Penetrated by Slug. Slug penetrates Wall. Biometal Medium Treads destroyed. U-05 Engineer builds a Wall. Penetrated by Slug. Arm. Medium Treads destroyed. Slug penetrates Wall. Penetrated by Slug. =VMT> S>0